bitfinex-derivatives/quotes_BTCF0:USTF0_20250424
["timestamp","ask_amount","ask_price","bid_price","bid_amount"]
[1745497124313,0.218769,92683.0,92682.0,0.1183408]
[1745497125006,0.217769,92683.0,92682.0,0.1183408]
[1745497125310,0.218769,92683.0,92682.0,0.1183408]
[1745497127113,0.217769,92683.0,92682.0,0.1183408]
[1745497127316,0.218769,92683.0,92682.0,0.1183408]
[1745497130512,0.1108833,92683.0,92682.0,0.1183408]
[1745497130813,0.002,92683.0,92682.0,0.1183408]
[1745497131016,0.001,92683.0,92682.0,0.1183408]
[1745497131233,0.003,92683.0,92682.0,0.2903408]
[1745497131612,0.5226028,92696.0,92695.0,0.1078677]
[1745497131822,0.4686665,92696.0,92695.0,0.1078677]
[1745497132408,0.4686665,92696.0,92695.0,0.18163432]
[1745497132913,0.4686665,92696.0,92695.0,0.1710677]
[1745497133920,0.4696665,92696.0,92695.0,0.1710677]
[1745497134120,0.4696665,92696.0,92695.0,0.1720677]
[1745497135116,0.4696665,92696.0,92695.0,0.1710677]
[1745497135321,0.4696665,92696.0,92695.0,0.1720677]
[1745497135622,0.4686665,92696.0,92695.0,0.1720677]
[1745497136921,0.4686665,92696.0,92695.0,0.1710677]
[1745497137112,0.4686665,92696.0,92695.0,0.1720677]
[1745497137516,0.4686665,92696.0,92695.0,0.1710677]
[1745497137717,0.4686665,92696.0,92695.0,0.1720677]
[1745497143119,0.5008665,92696.0,92695.0,0.1720677]
[1745497144122,0.1400665,92696.0,92695.0,0.1720677]
[1745497144824,0.2479465,92696.0,92695.0,0.1416677]
[1745497145025,0.107877,92687.0,92686.0,0.1389782]
[1745497145322,0.468677,92687.0,92686.0,0.1078782]
[1745497146320,0.107877,92687.0,92686.0,0.1098782]
[1745497147221,0.107877,92687.0,92686.0,0.2848782]
[1745497149029,0.107877,92687.0,92686.0,0.2828782]
[1745497149332,0.107877,92687.0,92686.0,0.2848782]
[1745497150828,0.0539379,92689.0,92688.0,0.1078758]
[1745497151332,0.0539379,92689.0,92688.0,0.2798758]
[1745497151532,0.3608,92690.0,92689.0,0.1078747]
[1745497151730,0.1078735,92690.0,92689.0,0.1401747]
[1745497152133,0.1078735,92690.0,92689.0,0.3121747]
[1745497153229,0.1078735,92690.0,92689.0,0.3131747]
[1745497153746,0.1618009,92697.0,92696.0,0.1078665]
[1745497153940,0.07077897,92702.0,92696.0,0.0539327]
[1745497154137,0.5225953,92701.0,92700.0,0.1078619]
[1745497154841,0.5535953,92701.0,92700.0,0.1078619]
[1745497155727,0.5845953,92701.0,92700.0,0.1078619]
[1745497156336,0.5865953,92701.0,92700.0,0.1078619]
[1745497156535,0.5875953,92701.0,92700.0,0.1078619]
[1745497158036,0.5865953,92701.0,92700.0,0.1078619]
[1745497158240,0.5875953,92701.0,92700.0,0.1078619]
[1745497161033,0.1078642,92698.0,92697.0,0.1378645]
[1745497162241,0.1088642,92698.0,92697.0,0.1378645]
[1745497162837,0.1078642,92698.0,92697.0,0.1378645]
[1745497163037,0.1088642,92698.0,92697.0,0.1378645]
[1745497166034,0.1078642,92698.0,92697.0,0.1378645]
[1745497166233,0.1088642,92698.0,92697.0,0.1378645]
[1745497168237,0.1078642,92698.0,92697.0,0.1917966]
[1745497168427,0.1088642,92698.0,92697.0,0.1917966]
[1745497168832,0.001,92698.0,92697.0,0.1917966]
[1745497169036,0.1078631,92699.0,92698.0,0.1078642]
[1745497169238,0.4457303,92701.0,92700.0,0.1078619]
[1745497170243,0.3918,92701.0,92700.0,0.1078619]
[1745497170545,0.4686607,92701.0,92700.0,0.1078619]
[1745497171047,0.3608,92701.0,92700.0,0.1078619]
[1745497171348,0.13951215,92707.0,92698.0,0.1696634]
[1745497171349,0.3608,92714.0,92698.0,0.0618]
[1745497171536,0.3608,92714.0,92713.0,0.1078467]
[1745497172432,0.3628,92714.0,92713.0,0.1709467]
[1745497173337,0.3638,92714.0,92713.0,0.1709467]
[1745497174549,0.3638,92714.0,92713.0,0.18151586]
[1745497174853,0.3638,92714.0,92713.0,0.18954909]
[1745497175250,0.003,92714.0,92713.0,0.18954909]
[1745497176254,0.003,92714.0,92713.0,0.36154909]
[1745497178546,0.003,92714.0,92713.0,0.72234909]
[1745497179749,0.3608,92731.0,92726.0,0.1078316]
[1745497180454,0.3916,92731.0,92726.0,0.1078316]
[1745497180653,0.1078285,92729.0,92726.0,0.1078316]
[1745497180843,0.1130296,92728.0,92726.0,0.1695316]
[1745497181046,0.0319,92727.0,92726.0,0.1695316]
[1745497181250,0.0339,92727.0,92726.0,0.1695316]
[1745497182156,0.0031,92727.0,92726.0,0.1695316]
[1745497182349,0.0071,92727.0,92726.0,0.1695316]
[1745497183256,0.0071,92727.0,92726.0,0.3415316]
[1745497184049,0.0302,92738.0,92731.0,0.0539129]
[1745497184251,0.0302,92738.0,92737.0,0.1078188]
[1745497185047,0.1380177,92738.0,92737.0,0.1711188]
[1745497185354,0.1460177,92738.0,92737.0,0.1721188]
[1745497187455,0.1460177,92738.0,92737.0,0.18302025]
[1745497187858,0.0382,92738.0,92737.0,0.18302025]
[1745497188059,0.1460177,92738.0,92737.0,0.18302025]
[1745497188555,0.008,92738.0,92737.0,0.18302025]
[1745497188756,0.1158177,92738.0,92737.0,0.18302025]
[1745497189658,0.008,92738.0,92737.0,0.18302025]
[1745497190154,0.1158177,92738.0,92737.0,0.18302025]
[1745497191265,0.1491177,92738.0,92737.0,0.18302025]
[1745497192764,0.1491177,92738.0,92737.0,0.1721188]
[1745497192963,0.1816177,92738.0,92737.0,0.1721188]
[1745497193151,0.1816177,92738.0,92737.0,0.18298664]
[1745497193352,0.1816177,92738.0,92737.0,0.1411188]
[1745497193657,0.1816177,92738.0,92737.0,0.0333]
[1745497194263,0.1816177,92738.0,92737.0,0.1411188]
[1745497198061,0.1491177,92738.0,92737.0,0.1411188]
[1745497198258,0.0538985,92756.0,92737.0,0.501932]
[1745497198557,0.1393975,92756.0,92755.0,0.3608]
[1745497198781,0.1078026,92751.0,92750.0,0.3608]
[1745497199154,0.172,92751.0,92750.0,0.3608]
[1745497199357,0.2028,92751.0,92750.0,0.4686037]
[1745497199663,0.7028,92751.0,92750.0,0.4686037]
[1745497200248,0.5308,92751.0,92750.0,0.5328037]
[1745497200651,0.11051437,92757.0,92756.0,0.1077967]
[1745497200652,0.00271797,92757.0,92756.0,0.1077967]
[1745497201559,0.06912,92773.0,92772.0,0.1077782]
[1745497201759,0.01059789,92781.0,92780.0,0.1077689]
[1745497201964,0.01059789,92781.0,92773.0,0.032]
[1745497202261,0.2603866,92790.0,92772.0,0.37151675]
[1745497202262,0.0538878,92775.0,92772.0,0.3608]
[1745497202449,0.1164844,92780.0,92772.0,0.3608]
[1745497202450,0.1703758,92774.0,92773.0,0.1396768]
[1745497202753,0.1703758,92774.0,92773.0,0.1716768]
[1745497202954,0.0626,92774.0,92773.0,0.1716768]
[1745497203161,0.06912,92782.0,92781.0,0.1077677]
[1745497203852,0.1077665,92782.0,92781.0,0.1177834]
[1745497204055,0.1077677,92781.0,92780.0,0.3608]
[1745497204261,0.3423677,92781.0,92780.0,0.3608]
[1745497204557,0.3423677,92781.0,92775.0,0.0319]
[1745497204558,0.1077735,92776.0,92775.0,0.0319]
[1745497204951,0.1077735,92776.0,92772.0,0.3948]
[1745497204952,0.107777,92773.0,92772.0,0.3608]
[1745497205560,0.1077863,92765.0,92764.0,0.3608]
[1745497205755,0.1770263,92765.0,92764.0,0.3608]
[1745497206164,0.1077956,92757.0,92756.0,0.1702967]
[1745497206864,0.1077956,92757.0,92756.0,0.1377967]
[1745497207261,0.1077956,92757.0,92756.0,0.034]
[1745497207651,0.1770356,92757.0,92756.0,0.034]
[1745497207851,0.1770356,92757.0,92756.0,0.1417967]
[1745497208157,0.1077956,92757.0,92756.0,0.1417967]
[1745497208664,0.1077956,92757.0,92756.0,0.1477967]
[1745497209661,0.1077956,92757.0,92756.0,0.04]
[1745497209864,0.2156036,92757.0,92756.0,0.01]
[1745497210062,0.107806,92748.0,92747.0,0.0306]
[1745497210361,0.1078107,92744.0,92739.0,0.0308]
[1745497210563,0.1770507,92744.0,92739.0,0.0614]
[1745497211156,0.3490507,92744.0,92739.0,0.0614]
[1745497212467,0.3490507,92744.0,92743.0,0.00361735]
[1745497212855,0.3490507,92744.0,92743.0,0.00261735]
[1745497213873,0.3490507,92744.0,92743.0,0.00161735]
[1745497214055,0.3510507,92744.0,92743.0,0.00161735]
[1745497221778,0.3500507,92744.0,92743.0,0.00161735]
[1745497223176,0.1780507,92744.0,92743.0,0.00161735]
[1745497223367,0.1770507,92744.0,92743.0,0.00161735]
[1745497223567,0.1790507,92744.0,92743.0,0.00161735]
[1745497224166,0.1078107,92744.0,92743.0,0.00161735]
[1745497224373,0.1780507,92744.0,92743.0,0.10942925]
[1745497225169,0.1780507,92744.0,92743.0,0.31452925]
[1745497226468,0.1780507,92744.0,92743.0,0.20671735]
[1745497226875,0.1780507,92744.0,92743.0,0.23931735]
[1745497227070,0.1780507,92744.0,92743.0,0.17512925]
[1745497227274,0.1780507,92744.0,92743.0,0.06731735]
[1745497227468,0.1780507,92744.0,92743.0,0.17512925]
[1745497228668,0.1780507,92744.0,92743.0,0.1735119]
[1745497228872,0.1780507,92744.0,92743.0,0.0657]
[1745497229176,0.1780507,92744.0,92743.0,0.1735119]
[1745497229381,0.1780507,92744.0,92743.0,0.0657]
[1745497230081,0.3831507,92744.0,92743.0,0.0657]
[1745497230770,0.4159507,92744.0,92743.0,0.0657]
[1745497233478,0.3467107,92744.0,92743.0,0.0657]
[1745497233781,0.3831507,92744.0,92743.0,0.0657]
[1745497234173,0.2111507,92744.0,92743.0,0.0657]
[1745497235996,0.1078293,92728.0,92726.0,0.36187844]
[1745497236295,0.1078293,92728.0,92727.0,0.03829214]
[1745497236584,0.1078293,92728.0,92727.0,0.17702264]
[1745497237379,0.1078293,92728.0,92727.0,0.07619214]
[1745497237579,0.1381293,92728.0,92727.0,0.07619214]
[1745497237979,0.1381293,92728.0,92727.0,0.07419214]
[1745497238787,0.1381293,92728.0,92727.0,0.07219214]
[1745497239188,0.1381293,92728.0,92727.0,0.21012264]
[1745497239888,0.1078293,92728.0,92727.0,0.21012264]
[1745497242992,0.3608,92734.0,92730.0,0.0539132]
[1745497243192,0.4686223,92734.0,92733.0,0.1078235]
[1745497244191,0.4686223,92734.0,92733.0,0.2798235]
[1745497246191,0.4686223,92734.0,92733.0,0.2808235]
[1745497247080,0.4686223,92734.0,92733.0,0.1088235]
[1745497247278,0.4686223,92734.0,92733.0,0.1098235]
[1745497248779,0.4686223,92734.0,92733.0,0.1088235]
[1745497249883,0.5000223,92734.0,92733.0,0.1724235]
[1745497250180,0.5000223,92734.0,92733.0,0.1734235]
[1745497250687,0.1392223,92734.0,92733.0,0.1734235]
[1745497252385,0.1392223,92734.0,92733.0,0.001]
[1745497252584,0.1078293,92728.0,92727.0,0.16883639]
[1745497253086,0.2798293,92728.0,92727.0,0.16883639]
[1745497253298,0.3415293,92728.0,92727.0,0.23043639]
[1745497253780,0.3415293,92728.0,92727.0,0.23343639]
[1745497253980,0.3101293,92728.0,92727.0,0.34126689]
[1745497254190,0.1078293,92728.0,92727.0,0.34126689]
[1745497254586,0.1078293,92728.0,92727.0,0.34226689]
[1745497255195,0.1385293,92728.0,92727.0,0.34226689]
[1745497255397,0.1385293,92728.0,92727.0,0.34126689]
[1745497255797,0.1078293,92728.0,92727.0,0.17782264]
[1745497255999,0.1078293,92728.0,92727.0,0.17682264]
[1745497256298,0.1078293,92728.0,92727.0,0.17782264]
[1745497256490,0.1078293,92728.0,92727.0,0.17582264]
[1745497256690,0.1078293,92728.0,92727.0,0.17782264]
[1745497259599,0.161736,92734.0,92733.0,0.1078235]
[1745497259995,0.1078192,92737.0,92732.0,0.1154117]
[1745497260186,0.1078073,92747.0,92740.0,0.1078153]
[1745497260390,0.1078119,92743.0,92740.0,0.1078153]
[1745497260596,0.1078119,92743.0,92742.0,0.107813]
[1745497261296,0.1078119,92743.0,92742.0,0.342313]
[1745497261695,0.1769284,92747.0,92746.0,0.1078084]
[1745497262395,0.1769284,92747.0,92746.0,0.2798084]
[1745497262595,0.1769284,92747.0,92746.0,0.3414084]
[1745497262797,0.1769284,92747.0,92746.0,0.2336]
[1745497262993,0.2086284,92747.0,92746.0,0.2346]
[1745497263189,0.2086284,92747.0,92746.0,0.1704084]
[1745497263387,0.2086284,92747.0,92746.0,0.0616]
[1745497263588,0.2086284,92747.0,92746.0,0.1704084]
[1745497264092,0.2086284,92747.0,92746.0,0.032]
[1745497264296,0.2715284,92747.0,92746.0,0.032]
[1745497264887,0.2715284,92747.0,92746.0,0.031]
[1745497265092,0.4435284,92747.0,92746.0,0.032]
[1745497265492,0.4435284,92747.0,92746.0,0.031]
[1745497265796,0.4435284,92747.0,92746.0,0.032]
[1745497266192,0.4435284,92747.0,92746.0,0.031]
[1745497266490,0.4435284,92747.0,92746.0,0.032]
[1745497268101,0.4445284,92747.0,92746.0,0.031]
[1745497270190,0.2725284,92747.0,92746.0,0.031]
[1745497270588,0.2096284,92747.0,92746.0,0.1388084]
[1745497271001,0.2086284,92747.0,92746.0,0.1388084]
[1745497271200,0.2096284,92747.0,92746.0,0.1388084]
[1745497271801,0.2086284,92747.0,92746.0,0.1388084]
[1745497272203,0.2085884,92747.0,92746.0,0.1388084]
[1745497272709,0.2095884,92747.0,92746.0,0.1388084]
[1745497273826,0.10178,92747.0,92746.0,0.1388084]
[1745497274004,0.07008,92747.0,92746.0,0.1388084]
[1745497274310,0.1768872,92747.0,92746.0,0.3118084]
[1745497274807,0.1078072,92747.0,92746.0,0.3108084]
[1745497275010,0.1088072,92747.0,92746.0,0.3118084]
[1745497275412,0.1088072,92747.0,92746.0,0.3108084]
[1745497275614,0.1088072,92747.0,92746.0,0.3128084]
[1745497275808,0.1078072,92747.0,92746.0,0.3138084]
[1745497276213,0.1078072,92747.0,92746.0,0.32962904]
[1745497277209,0.0315,92751.0,92748.0,0.0539026]
[1745497277416,0.04671,92752.0,92751.0,0.1078026]
[1745497277716,0.0538957,92761.0,92760.0,0.1616836]
[1745497277905,0.4685881,92764.0,92763.0,0.1077886]
[1745497278103,0.4685881,92764.0,92763.0,0.12360924]
[1745497278915,0.4685881,92764.0,92763.0,0.18640924]
[1745497279125,0.4685881,92764.0,92763.0,0.35840924]
[1745497279306,0.4685881,92764.0,92763.0,0.35940924]
[1745497279711,0.4685881,92764.0,92763.0,0.35840924]
[1745497279913,0.4685881,92764.0,92763.0,0.35940924]
[1745497280106,0.4685881,92764.0,92763.0,0.19799812]
[1745497280312,0.4685881,92764.0,92763.0,0.18217748]
[1745497280511,0.4685881,92764.0,92763.0,0.1715886]
[1745497281326,0.4685881,92764.0,92763.0,0.1725886]
[1745497282216,0.4685881,92764.0,92763.0,0.0648]
[1745497282409,0.4685881,92764.0,92763.0,0.0658]
[1745497282603,0.4989881,92764.0,92763.0,0.0658]
[1745497283008,0.4989881,92764.0,92763.0,0.002]
[1745497283215,0.6709881,92764.0,92763.0,0.002]
[1745497284119,0.6719881,92764.0,92763.0,0.001]
[1745497284512,0.1078014,92752.0,92751.0,0.0629]
[1745497284707,0.1768814,92752.0,92751.0,0.1707026]
[1745497285622,0.1768814,92752.0,92751.0,0.1767026]
[1745497286022,0.06908,92763.0,92751.0,0.0689]
[1745497286217,0.2307674,92763.0,92762.0,0.1077898]
[1745497286613,0.1077898,92762.0,92761.0,0.0945]
[1745497286925,0.1077898,92762.0,92761.0,0.2022909]
[1745497287120,0.3107898,92762.0,92761.0,0.2022909]
[1745497287310,0.3107898,92762.0,92761.0,0.0644]
[1745497287517,0.3434898,92762.0,92761.0,0.0644]
[1745497288321,0.3434898,92762.0,92761.0,0.0654]
[1745497288710,0.3107898,92762.0,92761.0,0.1731909]
[1745497289116,0.1387898,92762.0,92761.0,0.3451909]
[1745497289919,0.1387898,92762.0,92761.0,0.2374]
[1745497291414,0.1387898,92762.0,92761.0,0.3451909]
[1745497291814,0.1387898,92762.0,92761.0,0.2374]
[1745497292319,0.1688898,92762.0,92761.0,0.0654]
[1745497293220,0.1387898,92762.0,92761.0,0.0654]
[1745497295322,0.1078002,92754.0,92753.0,0.1078]
[1745497295521,0.1078002,92754.0,92753.0,0.0626]
[1745497295724,0.1404002,92754.0,92753.0,0.0626]
[1745497295922,0.1404002,92754.0,92753.0,0.1704002]
[1745497296718,0.1404002,92754.0,92753.0,0.0626]
[1745497297026,0.1404002,92754.0,92753.0,0.0656]
[1745497297222,0.1737002,92754.0,92753.0,0.0676]
[1745497297429,0.1737002,92754.0,92753.0,0.0646]
[1745497297624,0.1737002,92754.0,92753.0,0.0676]
[1745497298124,0.1737002,92754.0,92753.0,0.005]
[1745497298928,0.6737002,92754.0,92753.0,0.005]
[1745497299118,0.8457002,92754.0,92753.0,0.005]
[1745497299314,0.1078084,92746.0,92745.0,0.0333]
[1745497300119,0.1700084,92746.0,92745.0,0.0333]
[1745497300724,0.1700084,92746.0,92745.0,0.0373]
[1745497302529,0.1700084,92746.0,92745.0,0.0393]
[1745497304326,0.2402884,92746.0,92745.0,0.0393]
[1745497305727,0.2402884,92746.0,92745.0,0.0373]
[1745497306126,0.2402884,92746.0,92745.0,0.0333]
[1745497306425,0.1078107,92744.0,92743.0,0.00161736]
[1745497307114,0.1078107,92744.0,92743.0,0.03241736]
[1745497307821,0.1078107,92744.0,92743.0,0.03441736]
[1745497308723,0.1078107,92744.0,92743.0,0.03541736]
[1745497313428,0.1384107,92744.0,92743.0,0.03541736]
[1745497316534,0.1384107,92744.0,92743.0,0.03441736]
[1745497316733,0.1404107,92744.0,92743.0,0.03441736]
[1745497316939,0.1404107,92744.0,92743.0,0.03241736]
[1745497317727,0.1098107,92744.0,92743.0,0.14022926]
[1745497317933,0.1098107,92744.0,92743.0,0.03241736]
[1745497318123,0.1098107,92744.0,92743.0,0.20441736]
[1745497318823,0.1088107,92744.0,92743.0,0.20441736]
[1745497320035,0.1078107,92744.0,92743.0,0.20441736]
[1745497320229,0.1088107,92744.0,92743.0,0.31222926]
[1745497320429,0.1088107,92744.0,92743.0,0.20441736]
[1745497321539,0.1078107,92744.0,92743.0,0.34372926]
[1745497321737,0.1088107,92744.0,92743.0,0.34372926]
[1745497323625,0.1078107,92744.0,92743.0,0.34372926]
[1745497323828,0.1207007,92744.0,92743.0,0.34372926]
[1745497324033,0.1207007,92744.0,92743.0,0.23591736]
[1745497324231,0.1207007,92744.0,92743.0,0.06391736]
[1745497324632,0.1516007,92744.0,92743.0,0.06391736]
[1745497325627,0.6516007,92744.0,92743.0,0.06391736]
[1745497326230,0.6207007,92744.0,92743.0,0.06391736]
[1745497326434,0.6207007,92744.0,92743.0,0.17172926]
[1745497326735,0.6909807,92744.0,92743.0,0.06391736]
[1745497326935,0.1909807,92744.0,92743.0,0.06391736]
[1745497327136,0.1909807,92744.0,92743.0,0.23591736]
[1745497328338,0.1899807,92744.0,92743.0,0.23591736]
[1745497328536,0.2236807,92744.0,92743.0,0.23591736]
[1745497329241,0.2236807,92744.0,92743.0,0.06391736]
[1745497330140,0.2226807,92744.0,92743.0,0.06391736]
[1745497330346,0.2236807,92744.0,92743.0,0.06391736]
[1745497331348,0.2546807,92744.0,92743.0,0.06391736]
[1745497334245,0.2236807,92744.0,92743.0,0.06391736]
[1745497334444,0.2539807,92744.0,92743.0,0.06391736]
[1745497336136,0.2236807,92744.0,92743.0,0.06391736]
[1745497337746,0.2226807,92744.0,92743.0,0.06391736]
[1745497338044,0.2236807,92744.0,92743.0,0.06391736]
[1745497341049,0.5844807,92744.0,92743.0,0.06391736]
[1745497343739,0.5142007,92744.0,92743.0,0.06391736]
[1745497343934,0.5841207,92744.0,92743.0,0.06391736]
[1745497344546,0.2233207,92744.0,92743.0,0.06391736]
[1745497344847,0.5841207,92744.0,92743.0,0.06391736]
[1745497345445,0.5514207,92744.0,92743.0,0.06391736]
[1745497345946,0.5831207,92744.0,92743.0,0.06391736]
[1745497347643,0.6154207,92744.0,92743.0,0.06391736]
[1745497347844,0.1078293,92728.0,92727.0,4e-08]
[1745497348047,2.39404,92728.0,92705.0,0.27307392]
[1745497348244,0.1078549,92706.0,92705.0,0.27307392]
[1745497348445,0.5385749,92706.0,92705.0,0.27307392]
[1745497351449,0.1078561,92705.0,92704.0,0.0314]
[1745497352356,0.1197561,92705.0,92704.0,0.0314]
[1745497352550,0.1197561,92705.0,92704.0,0.0324]
[1745497352961,0.1197561,92705.0,92704.0,0.1402572]
[1745497353259,0.08186,92705.0,92704.0,0.3122572]
[1745497354153,0.1897161,92705.0,92704.0,0.2044]
[1745497354563,0.2221161,92705.0,92704.0,0.2044]
[1745497355153,0.2221161,92705.0,92704.0,0.0324]
[1745497356755,0.2546161,92705.0,92704.0,0.0324]
[1745497357162,0.2546161,92705.0,92704.0,0.001]
[1745497357866,0.1078619,92700.0,92699.0,0.0301]
[1745497358166,0.1078619,92700.0,92699.0,0.309963]
[1745497359063,0.1078619,92700.0,92699.0,0.311963]
[1745497360463,0.1078619,92700.0,92699.0,0.2041]
[1745497360653,0.1078619,92700.0,92699.0,0.311963]
[1745497360855,0.1078619,92700.0,92699.0,0.312963]
[1745497364356,0.1078619,92700.0,92699.0,0.2051]
[1745497364556,0.1078619,92700.0,92699.0,0.312963]
[1745497365767,0.4686619,92700.0,92699.0,0.312963]
[1745497366968,0.5378219,92700.0,92699.0,0.312963]
[1745497367362,0.1770219,92700.0,92699.0,0.312963]
[1745497367569,0.5378219,92700.0,92699.0,0.312963]
[1745497368567,0.5378219,92700.0,92699.0,0.2051]
[1745497368967,0.5684219,92700.0,92699.0,0.09336124]
[1745497369267,0.6007219,92700.0,92699.0,0.003]
[1745497370160,0.7727219,92700.0,92699.0,0.003]
[1745497370464,0.1078654,92697.0,92696.0,0.00107879]
[1745497370665,0.4686654,92697.0,92696.0,9e-08]
[1745497371262,0.6406654,92697.0,92696.0,9e-08]
[1745497371565,0.6406654,92697.0,92696.0,0.00200009]
[1745497371761,0.6406654,92697.0,92696.0,0.00500009]
[1745497371959,1.1406654,92697.0,92696.0,0.00500009]
[1745497373671,1.2485454,92697.0,92696.0,0.00500009]
[1745497376272,1.2485454,92697.0,92696.0,9e-08]
[1745497377171,0.1078851,92680.0,92679.0,0.00539494]
[1745497377373,0.5378451,92680.0,92679.0,0.00539494]
[1745497377773,0.5705451,92680.0,92679.0,0.00539494]
[1745497378168,0.5715451,92680.0,92679.0,0.01139494]
[1745497378573,0.6017451,92680.0,92679.0,0.01139494]
[1745497378767,0.6017451,92680.0,92679.0,0.01739494]
[1745497380981,1.1017451,92680.0,92679.0,0.01739494]
[1745497381369,1.1017451,92680.0,92679.0,0.01539494]
[1745497381974,1.1017451,92680.0,92679.0,0.01339494]
[1745497383472,1.1136551,92680.0,92679.0,0.01339494]
[1745497386082,1.2856551,92680.0,92679.0,4e-08]
[1745497386390,1.29671561,92680.0,92679.0,4e-08]
[1745497386882,0.1078875,92678.0,92677.0,0.0307]
[1745497387379,0.107898,92669.0,92668.0,0.0331]
[1745497387572,0.468698,92669.0,92668.0,0.0331]
[1745497388074,0.468698,92669.0,92668.0,0.2051]
[1745497388670,0.469698,92669.0,92668.0,0.2411]
[1745497389167,0.469698,92669.0,92668.0,0.0691]
[1745497389772,0.499798,92669.0,92668.0,0.0691]
[1745497389969,0.499798,92669.0,92668.0,0.0721]
[1745497390880,0.568958,92669.0,92668.0,0.0721]
[1745497391079,0.568958,92669.0,92668.0,0.2441]
[1745497392181,0.568958,92669.0,92668.0,0.0721]
[1745497393771,0.538858,92669.0,92668.0,0.0721]
[1745497394174,0.538858,92669.0,92668.0,0.2441]
[1745497394781,0.001,92669.0,92668.0,0.3519991]
[1745497394981,0.1078929,92677.0,92676.0,0.1618318]
[1745497395175,0.1078929,92677.0,92676.0,0.3338318]
[1745497395371,0.01191,92680.0,92679.0,0.1078863]
[1745497395575,0.177038,92687.0,92686.0,0.161817]
[1745497395772,0.06916,92687.0,92686.0,0.161817]
[1745497395976,0.2157494,92693.0,92692.0,0.1078712]
[1745497396186,0.2157494,92693.0,92692.0,0.2798712]
[1745497396382,0.1078725,92693.0,92692.0,0.2798712]
[1745497396886,0.1078725,92693.0,92692.0,0.3441712]
[1745497397077,0.1098725,92693.0,92692.0,0.3441712]
[1745497397779,0.1118725,92693.0,92692.0,0.3441712]
[1745497398289,0.1108725,92693.0,92692.0,0.3441712]
[1745497398479,0.11087,92693.0,92692.0,0.3441712]
[1745497399892,0.10987,92693.0,92692.0,0.3441712]
[1745497400892,0.11087,92693.0,92692.0,0.3441712]
[1745497401087,0.11087,92693.0,92692.0,0.2363]
[1745497401792,0.11087,92693.0,92692.0,0.3441712]
[1745497401989,0.10887,92693.0,92692.0,0.2363]
[1745497402188,0.10987,92693.0,92692.0,0.2363]
[1745497402793,0.10887,92693.0,92692.0,0.2363]
[1745497403094,0.11087,92693.0,92692.0,0.2363]
[1745497404577,0.17467,92693.0,92692.0,0.2363]
[1745497405287,0.17467,92693.0,92692.0,0.0643]
[1745497405484,0.11087,92693.0,92692.0,0.0643]
[1745497406082,0.11087,92693.0,92692.0,0.2363]
[1745497408379,0.11087,92693.0,92692.0,0.3441712]
[1745497408583,0.11087,92693.0,92692.0,0.2363]
[1745497413687,0.14277,92693.0,92692.0,0.2363]
[1745497415083,0.17437,92693.0,92692.0,0.2363]
[1745497416591,0.17437,92693.0,92692.0,0.3441712]
[1745497416793,0.11087,92693.0,92692.0,0.3441712]
[1745497418701,0.10987,92693.0,92692.0,0.3441712]
[1745497419305,0.10887,92693.0,92692.0,0.3441712]
[1745497419901,0.10887,92693.0,92692.0,0.3751712]
[1745497422001,0.10787,92693.0,92692.0,0.3751712]
[1745497422305,0.10887,92693.0,92692.0,0.3751712]
[1745497427307,0.13967,92693.0,92692.0,0.3441712]
[1745497428002,0.17217,92693.0,92692.0,0.3441712]
[1745497430506,0.13967,92693.0,92692.0,0.2363]
[1745497430705,0.16987,92693.0,92692.0,0.2041]
[1745497431097,0.16987,92693.0,92692.0,0.0321]
[1745497432000,0.16887,92693.0,92692.0,0.0321]
[1745497432201,0.16987,92693.0,92692.0,0.0321]
[1745497434001,0.23903,92693.0,92692.0,0.0321]
[1745497436105,0.23903,92693.0,92692.0,0.2041]
[1745497437113,0.23903,92693.0,92692.0,0.0321]
[1745497443815,0.23903,92693.0,92692.0,0.1399712]
[1745497444109,0.23903,92693.0,92692.0,0.3119712]
[1745497444308,0.20883,92693.0,92692.0,0.3119712]
[1745497445715,0.20883,92693.0,92692.0,0.3446712]
[1745497451622,0.13967,92693.0,92692.0,0.3446712]
[1745497451818,0.20883,92693.0,92692.0,0.3446712]
[1745497455220,0.20883,92693.0,92692.0,0.1726712]
[1745497456215,0.20883,92693.0,92692.0,0.3446712]
[1745497456406,0.001,92693.0,92692.0,0.3446712]
[1745497456815,0.10887,92693.0,92692.0,0.3446712]
[1745497463627,0.10787,92693.0,92692.0,0.3446712]
[1745497463925,0.10887,92693.0,92692.0,0.3446712]
[1745497465123,0.10787,92693.0,92692.0,0.3446712]
[1745497467926,0.1618012,92696.0,92695.0,0.1078677]
[1745497468127,0.0539332,92696.0,92695.0,0.1078677]
[1745497468327,0.0539332,92696.0,92695.0,0.3763677]
[1745497469121,0.0867332,92696.0,92695.0,0.3763677]
[1745497469623,0.0867332,92696.0,92695.0,0.3446677]
[1745497470019,0.0539332,92696.0,92695.0,0.3446677]
[1745497470421,0.0559332,92696.0,92695.0,0.3446677]
[1745497471427,0.0549332,92696.0,92695.0,0.3446677]
[1745497471616,0.0559332,92696.0,92695.0,0.3446677]
[1745497471821,0.0549332,92696.0,92695.0,0.3446677]
[1745497472129,0.002,92696.0,92695.0,0.3446677]
[1745497472324,0.1098665,92696.0,92695.0,0.3446677]
[1745497473924,0.1088665,92696.0,92695.0,0.3446677]
[1745497474127,0.1078665,92696.0,92695.0,0.3446677]
[1745497474628,0.1088665,92696.0,92695.0,0.3446677]
[1745497475229,0.1098665,92696.0,92695.0,0.3446677]
[1745497475618,0.1098665,92696.0,92695.0,0.2052]
[1745497476018,0.1721665,92696.0,92695.0,0.172]
[1745497476223,0.0539367,92691.0,92690.0,0.0539362]
[1745497476634,0.1162367,92691.0,92690.0,0.0539362]
[1745497477231,0.1162367,92691.0,92690.0,0.2259362]
[1745497477821,0.1162367,92691.0,92690.0,0.3348097]
[1745497479133,0.1162367,92691.0,92690.0,0.1628097]
[1745497480132,0.1162367,92691.0,92690.0,0.3348097]
[1745497481132,0.1162367,92691.0,92690.0,0.1628097]
[1745497485037,0.1172367,92691.0,92690.0,0.1618097]
[1745497487136,0.1172367,92691.0,92653.0,0.3608]
[1745497487137,0.0539425,92681.0,92653.0,0.3608]
[1745497487337,0.4686875,92678.0,92677.0,0.13011061]
[1745497487535,0.4686875,92678.0,92666.0,0.28513575]
[1745497487536,0.1078933,92673.0,92672.0,0.13011061]
[1745497487838,0.1079003,92667.0,92666.0,4e-08]
[1745497488035,0.1079177,92652.0,92651.0,0.32920397]
[1745497488236,0.8986377,92652.0,92651.0,0.30053617]
[1745497488938,0.9613377,92652.0,92651.0,0.30053617]
[1745497489127,1.6333377,92652.0,92651.0,0.30053617]